bitfinex/quotes_ETHUSD_20260129
["timestamp","ask_amount","ask_price","bid_price","bid_amount"]
[1769701584768,0.0142801,2806.8,2806.4,0.89081478]
[1769701584934,0.0142801,2807.1,2805.9,3.56383741]
[1769701584935,0.0142801,2806.7,2805.9,3.56383741]
[1769701585132,0.0142801,2806.6,2805.9,3.56383741]
[1769701585339,0.0142801,2806.9,2805.9,3.56383741]
[1769701585745,0.0142801,2806.7,2805.9,3.56383741]
[1769701585949,0.0142801,2806.9,2805.9,3.56383741]
[1769701586149,0.90483356,2807.3,2805.8,0.89097972]
[1769701586150,2.73037155,2807.2,2805.8,0.89100311]
[1769701586335,0.0142801,2807.3,2805.8,0.89100311]
[1769701586336,0.0142801,2806.5,2805.9,1.70688004]
[1769701586536,0.0142801,2807.0,2806.1,1.7720882]
[1769701586747,0.0142801,2806.9,2806.3,1.72958532]
[1769701586949,0.0142801,2807.1,2804.9,0.45707622]
[1769701586950,0.0142801,2806.8,2804.9,0.45707622]
[1769701587150,0.0142801,2806.8,2806.3,0.89085118]
[1769701587369,0.0142801,2807.7,2806.3,1.33627739]
[1769701587936,0.03920101,2807.3,2806.3,1.33627739]
[1769701588629,0.0142801,2807.7,2806.3,1.33627739]
[1769701588969,0.03920101,2808.3,2806.8,0.89069402]
[1769701589204,0.03920101,2809.0,2806.9,15.46821535]
[1769701589342,0.03920101,2808.7,2806.9,15.46821535]
[1769701590082,0.03920101,2808.5,2807.0,0.746]
[1769701590282,0.03920101,2808.7,2807.0,14.74533917]
[1769701590452,0.92910783,2809.3,2807.0,14.74533917]
[1769701590453,0.03920101,2808.8,2807.4,10.23529171]
[1769701590642,0.03920101,2808.8,2807.5,1.00896512]
[1769701590843,3.761,2809.2,2807.6,0.89044023]
[1769701591043,3.59659087,2811.1,2807.6,14.8897794]
[1769701591044,0.88972827,2809.9,2807.6,14.8897794]
[1769701591242,0.03920101,2809.5,2807.6,14.8897794]
[1769701591550,0.88958164,2810.4,2808.2,13.99933917]
[1769701591899,0.88958164,2810.4,2807.6,0.92964124]
[1769701591900,0.03920101,2811.1,2808.9,13.99933917]
[1769701592189,0.03920101,2810.9,2808.9,13.99933917]
[1769701592386,0.03920101,2810.7,2808.9,13.99933917]
[1769701592589,0.03920101,2810.5,2808.9,0.746]
[1769701592872,0.92868424,2810.7,2809.0,0.88999644]
[1769701593063,0.92868424,2810.7,2808.9,4.30598576]
[1769701593064,0.03920101,2810.3,2808.9,0.8900164]
[1769701593260,0.03920101,2810.7,2808.9,0.8900164]
[1769701593472,0.92866548,2810.7,2808.9,0.8900164]
[1769701593673,0.03920101,2810.5,2808.9,0.8900164]
[1769701594068,0.03920101,2810.3,2808.9,0.8900164]
[1769701594283,0.03920101,2810.3,2808.9,1.33502929]
[1769701594461,0.03920101,2810.5,2808.9,1.33502929]
[1769701594661,0.03920101,2811.4,2808.9,1.33502929]
[1769701594662,3.98486429,2811.3,2808.9,15.33436846]
[1769701594893,0.03920101,2811.1,2808.9,15.33436846]
[1769701595097,0.3800201,2811.0,2809.1,13.99933917]
[1769701595310,0.18492452,2811.5,2809.6,13.99933917]
[1769701595616,1.25892938,2811.6,2809.6,13.99933917]
[1769701595767,0.03920101,2811.3,2809.6,13.99933917]
[1769701595968,0.03920101,2811.3,2809.6,14.74533917]
[1769701596168,0.03920101,2811.3,2809.7,1.00896512]
[1769701596468,0.40895656,2811.6,2809.7,1.00896512]
[1769701596664,0.36975555,2811.6,2809.7,15.00830429]
[1769701596997,1.2589342,2811.6,2809.8,0.88974304]
[1769701597365,1.2589342,2811.6,2809.8,14.88908221]
[1769701597695,1.2589342,2811.6,2809.9,14.44476538]
[1769701597696,0.48548289,2811.5,2809.9,14.44476538]
[1769701597866,0.18490479,2812.0,2810.4,13.99933917]
[1769701598067,0.03920101,2812.1,2810.4,14.74533917]
[1769701598785,0.03920101,2811.9,2810.4,13.99933917]
[1769701599122,0.03920101,2811.3,2809.9,0.44542621]
[1769701599269,0.03920101,2811.5,2810.0,0.88967322]
[1769701599463,0.03920101,2811.5,2809.9,17.55809086]
[1769701599703,0.4090087,2812.5,2810.4,14.8888893]
[1769701599704,0.92827097,2812.0,2810.4,14.8888893]
[1769701599932,0.2240725,2812.5,2810.4,14.8888893]
[1769701599933,0.92817248,2812.3,2810.4,14.8888893]
[1769701600083,0.2240725,2812.5,2811.1,13.99933917]
[1769701600084,0.18487149,2812.5,2811.1,13.99933917]
[1769701600412,3.55642914,2812.7,2811.1,13.99933917]
[1769701600578,0.88885728,2812.6,2811.1,13.99933917]
[1769701600776,0.88885728,2812.6,2810.5,0.8904391]
[1769701600986,1.33343465,2812.5,2810.6,14.88882895]
[1769701601187,0.88890601,2812.5,2810.8,13.99933917]
[1769701602812,0.14160101,2812.4,2810.5,0.8904391]
[1769701603006,0.8889521,2812.3,2810.7,14.88879731]
[1769701603388,0.001,2812.7,2810.7,14.88879731]
[1769701603588,0.88885728,2812.6,2810.7,14.88879731]
[1769701604516,0.88983952,2812.7,2810.7,14.88879731]
[1769701604683,0.001,2812.7,2810.9,13.99933917]
[1769701604883,0.88983124,2812.7,2811.1,13.99933917]
[1769701605091,0.001,2812.7,2811.2,14.88863911]
[1769701605280,0.001,2812.7,2811.2,13.99933917]
[1769701605480,0.03920101,2812.6,2810.6,0.002]
[1769701605801,0.001,2812.3,2810.7,3.5577398]
[1769701606001,0.001,2812.3,2810.6,0.002]
[1769701606208,0.001,2812.3,2810.6,0.89146924]
[1769701606377,0.001,2812.3,2810.6,13.97633917]
[1769701606585,0.03920101,2812.0,2810.6,13.97633917]
[1769701606792,0.03920101,2812.2,2810.6,13.97633917]
[1769701606999,3.761,2811.8,2810.6,0.002]
[1769701607330,4.22600785,2811.7,2809.4,13.97533917]
[1769701607494,4.22600785,2811.7,2810.1,0.88964352]
[1769701607698,4.22600785,2811.7,2810.0,14.8650009]
[1769701607933,4.22600785,2811.7,2810.0,13.97533917]
[1769701608137,0.03920101,2811.4,2809.9,0.50508773]
[1769701608295,0.42652089,2811.6,2810.1,14.86496795]
[1769701608630,0.88907855,2811.9,2810.1,14.86496795]
[1769701609254,0.03920101,2811.6,2809.9,0.50508773]
[1769701609755,4.34051524,2812.0,2809.9,14.4804269]
[1769701610063,0.04882844,2812.6,2810.2,13.97533917]
[1769701610064,0.88885728,2812.6,2810.2,13.97533917]
[1769701610351,0.88885728,2812.6,2810.8,13.97533917]
[1769701610352,3.761,2812.5,2810.8,13.97533917]
[1769701610543,0.1024,2812.4,2810.3,15.4618361]
[1769701611132,0.03201309,2812.3,2810.3,15.4618361]
[1769701611331,0.1024,2812.0,2810.3,15.4618361]
[1769701611532,3.761,2811.8,2810.3,1.48649693]
[1769701611851,3.761,2811.8,2809.9,0.50508773]
[1769701612053,3.761,2811.8,2810.0,13.97533917]
[1769701612220,0.745,2811.7,2810.0,14.86498954]
[1769701612425,0.745,2811.7,2810.0,13.97533917]
[1769701612666,0.745,2811.7,2810.2,0.88961386]
[1769701612833,0.745,2811.7,2810.0,14.86500717]
[1769701613153,0.745,2811.7,2809.9,0.50508773]
[1769701613450,0.88917342,2811.6,2809.9,15.37013066]
[1769701614068,0.88917342,2811.6,2809.9,14.4804269]
[1769701614656,0.77419099,2812.9,2810.1,13.97533917]
[1769701614657,0.88892049,2812.4,2810.1,13.97533917]
[1769701614822,0.745,2811.9,2810.1,13.97533917]
[1769701615020,0.1024,2811.8,2810.2,1.39753392]
[1769701615258,1.6341418,2811.7,2810.2,2.2871411]
[1769701615470,0.76374731,2811.6,2810.2,16.26248554]
[1769701615621,0.01874731,2811.6,2810.2,16.26248554]
[1769701616022,0.01874731,2811.6,2810.5,13.97533917]
[1769701616250,0.01874731,2811.6,2810.7,13.97533917]
[1769701616524,3.5554641,2812.6,2810.7,13.97533917]
[1769701616782,0.18477475,2813.1,2812.5,13.97533917]
[1769701616978,0.18477475,2813.1,2811.6,13.97533917]
[1769701617254,0.35365654,2813.4,2811.7,14.86448097]
[1769701617255,0.05173539,2813.0,2811.7,14.86448097]
[1769701617457,0.94046839,2813.0,2811.8,1.52573359]
[1769701617658,0.94046839,2813.0,2811.8,15.50107276]
[1769701617969,0.03201309,2812.8,2810.6,0.745]
[1769701618149,0.94046839,2813.0,2810.8,12.75735558]
[1769701618353,0.03201309,2812.7,2811.2,0.88928743]
[1769701618550,0.03201309,2812.7,2811.0,0.88934972]
[1769701618870,0.03201309,2812.7,2810.8,12.75735558]
[1769701618871,0.03201309,2812.5,2810.8,12.75735558]
[1769701619035,0.03201309,2812.5,2810.9,1.36467909]
[1769701619398,0.88892049,2812.4,2810.9,1.36467909]
[1769701619529,0.03201309,2812.3,2810.2,12.75735558]
[1769701619868,0.03201309,2812.3,2810.6,0.88947144]
[1769701620032,0.03201309,2812.3,2810.3,0.89156765]
[1769701620230,0.03201309,2812.3,2810.5,0.88951967]
[1769701620551,0.03201309,2812.3,2810.5,0.44498256]
[1769701620749,0.03201309,2812.3,2810.3,0.002]
[1769701620750,0.03201309,2812.1,2810.3,0.002]
[1769701621052,0.03201309,2811.9,2810.3,0.002]
[1769701621245,0.88911017,2811.8,2810.3,0.002]
[1769701621791,0.745,2811.7,2810.4,12.75735558]
[1769701621982,0.745,2811.7,2810.3,0.002]
[1769701621983,0.001,2812.8,2810.5,14.03329114]
[1769701622279,1.63382568,2812.7,2810.5,14.03329114]
[1769701622476,0.88882568,2812.7,2810.5,14.03329114]
[1769701622646,0.745,2812.6,2810.5,14.03329114]
[1769701623046,0.745,2812.5,2810.5,14.03329114]
[1769701623361,0.745,2812.4,2810.7,0.88945814]
[1769701623562,0.745,2812.3,2810.6,2.29280717]
[1769701623957,0.88882568,2812.7,2810.6,2.29280717]
[1769701624154,3.58831582,2812.8,2810.9,12.75735558]
[1769701624155,0.745,2812.6,2810.9,12.75735558]
[1769701624561,0.745,2812.5,2810.9,12.75735558]
[1769701624766,0.745,2812.5,2811.0,14.03309114]
[1769701624966,0.88980629,2812.8,2811.0,14.03309114]
[1769701625171,0.745,2812.7,2811.0,14.03309114]
[1769701625382,0.88885728,2812.6,2811.1,0.88933157]
[1769701625544,0.745,2812.5,2811.1,0.88933157]
[1769701625748,1.26392864,2812.5,2811.2,1.64753195]
[1769701625946,1.26392864,2812.5,2811.0,13.64669632]
[1769701626572,0.51892864,2812.5,2811.0,13.64669632]
[1769701626885,0.03201309,2812.3,2810.3,0.002]
[1769701627080,0.88885728,2812.6,2810.5,12.75735558]
[1769701627284,0.88885728,2812.6,2811.0,13.64671603]
[1769701627446,0.88982568,2812.8,2811.0,13.64671603]
[1769701627648,0.88981606,2812.8,2811.1,14.47777247]
[1769701627865,0.745,2812.7,2811.1,14.47777247]
[1769701628065,0.88981606,2812.8,2811.1,14.47777247]
[1769701628264,0.1024,2812.5,2810.5,12.75735558]
[1769701628464,0.1024,2812.5,2810.3,0.002]
[1769701628867,0.03201309,2812.4,2810.3,0.002]
[1769701629061,3.8634,2812.1,2810.3,0.002]
[1769701629255,2.17950029,2812.0,2810.3,0.002]
[1769701629486,0.1024,2811.8,2810.3,0.002]
[1769701630287,0.1024,2811.8,2811.1,0.002]
[1769701630489,0.1024,2811.8,2809.9,0.50508773]
[1769701630786,0.03201309,2811.2,2809.2,0.89191687]
[1769701630986,0.1024,2811.4,2809.5,0.88983118]
[1769701631158,0.1024,2811.0,2809.5,0.88981858]
[1769701631357,0.88939485,2810.9,2809.4,12.75735558]
[1769701631558,0.88939485,2810.9,2809.7,0.002]
[1769701631759,0.8891418,2811.7,2809.7,12.75935558]
[1769701631958,0.8891418,2811.7,2809.9,12.75735558]
[1769701631959,1.2919709,2811.6,2809.9,12.75735558]
[1769701632161,1.2919709,2811.6,2809.8,1.27593556]
[1769701632487,1.2919709,2811.6,2809.7,0.002]
[1769701632979,5.08498399,2811.6,2809.7,0.002]
[1769701633298,0.03201309,2811.4,2809.7,0.002]
[1769701633490,3.8634,2811.2,2809.7,0.002]
[1769701633788,0.03201309,2811.0,2809.2,0.002]
[1769701633958,4.18575571,2811.0,2809.2,0.002]
[1769701634159,0.1024,2810.8,2809.2,0.002]
[1769701634360,0.1024,2811.2,2809.2,12.75935558]
[1769701634579,0.1024,2811.0,2809.2,12.75935558]
[1769701635598,0.1024,2810.8,2809.2,0.89190248]
[1769701635765,0.1024,2810.8,2809.2,0.002]
[1769701635766,0.745,2810.7,2809.2,0.002]
[1769701636485,0.1024,2810.6,2809.2,0.002]
[1769701636805,0.1024,2810.4,2809.2,0.002]
[1769701637499,0.88923667,2811.4,2809.4,13.6472253]
[1769701637704,0.49802159,2811.3,2809.5,14.12207811]
[1769701637885,0.745,2811.2,2809.5,14.12207811]
[1769701638289,0.53003468,2811.3,2809.5,1.36472253]
[1769701638491,0.745,2811.2,2809.6,12.75735558]
[1769701638667,0.745,2811.2,2809.3,0.88988126]
[1769701638865,0.745,2811.1,2809.3,13.64723684]
[1769701639068,0.745,2811.0,2809.3,13.64723684]
[1769701639293,0.49802159,2811.3,2809.3,13.64723684]
[1769701639571,1.6343183,2811.2,2809.7,12.75735558]
[1769701639906,1.66633139,2811.2,2809.7,12.75735558]
[1769701640107,1.6343183,2811.2,2809.7,12.75735558]
[1769701640278,0.745,2811.1,2809.7,12.75735558]
[1769701640792,0.53403248,2811.5,2809.8,0.26558339]
[1769701640993,0.53403248,2811.5,2810.3,12.75735558]
[1769701641193,0.53403248,2811.5,2810.0,0.03201309]
[1769701641194,1.63399149,2812.2,2810.5,12.75735558]
[1769701641601,0.88904694,2812.0,2810.5,13.64687701]
[1769701642470,0.88888888,2812.5,2810.5,13.64687701]
[1769701642978,0.745,2812.4,2810.5,13.64687701]
[1769701643393,0.92090197,2812.5,2810.5,13.64687701]
[1769701643693,1.19274575,2812.4,2810.6,1.72088424]
[1769701643895,1.6339521,2812.3,2810.7,13.64681372]
[1769701644491,0.745,2812.2,2810.7,13.64681372]
[1769701644690,0.745,2812.1,2810.7,13.64681372]
[1769701644890,0.44774575,2812.4,2810.7,13.64681372]
[1769701645094,2.08168903,2812.4,2810.9,12.75735558]
[1769701645826,0.44774575,2812.4,2811.1,12.9328184]
[1769701645973,0.001,2812.6,2811.1,12.9328184]
[1769701645974,0.8898622,2812.6,2811.1,12.9328184]
[1769701646824,0.745,2812.5,2811.1,12.9328184]
[1769701646996,0.745,2812.5,2810.9,13.82220482]
[1769701647195,0.745,2812.5,2811.0,14.65370264]
[1769701647504,0.8898622,2812.6,2811.0,14.65370264]
[1769701647705,0.745,2812.4,2811.0,14.65370264]
[1769701647915,0.745,2812.3,2811.1,13.82214997]
[1769701648078,0.745,2812.3,2811.1,12.9328184]
[1769701648411,0.88888888,2812.5,2811.2,1.20238327]
[1769701648729,0.745,2812.4,2811.2,14.13520167]
[1769701649202,0.88888888,2812.5,2811.2,14.13520167]
[1769701649374,0.745,2812.4,2811.2,14.13520167]
[1769701649900,1.6339521,2812.3,2811.3,0.88926831]
[1769701650104,1.6339521,2812.3,2811.2,15.02448831]
[1769701650397,0.745,2812.3,2811.2,15.02448831]
[1769701650617,0.88893579,2812.4,2811.2,15.02448831]
[1769701651004,0.745,2812.3,2811.2,12.9328184]
[1769701651325,0.745,2812.3,2810.8,0.88942533]
[1769701651541,0.1024,2812.2,2810.6,13.82228888]
[1769701651696,0.1024,2812.2,2810.7,13.82224769]
[1769701651895,0.88901532,2812.1,2810.7,12.9328184]
[1769701652199,0.88900083,2812.2,2810.7,13.82225426]
[1769701652798,0.745,2812.1,2810.7,13.82225426]
[1769701653201,3.55566281,2812.5,2810.7,13.82225426]
[1769701653533,0.88988888,2812.6,2810.7,13.82225426]
[1769701653534,0.88985786,2812.6,2810.7,13.82225426]
[1769701653708,0.745,2812.5,2810.9,12.81630583]
[1769701653918,0.88892049,2812.4,2810.9,12.81630583]
[1769701654261,0.88892049,2812.4,2809.5,0.002]
[1769701654262,0.13441309,2812.3,2809.5,0.002]
[1769701654437,0.03201309,2812.3,2810.5,12.81630583]
[1769701654648,0.88892049,2812.4,2810.9,13.70568439]
[1769701654649,0.745,2812.2,2810.9,13.70568439]
[1769701654858,0.92092407,2812.5,2811.0,14.542639]
[1769701655033,0.745,2812.4,2811.0,14.542639]
[1769701655212,0.88891098,2812.5,2811.0,14.542639]
[1769701655415,0.001,2812.6,2811.0,14.542639]
[1769701655642,0.001,2812.6,2811.4,12.81630583]
[1769701655949,0.001,2812.6,2811.6,12.81630583]
[1769701656116,0.001,2812.6,2811.7,13.70544763]
[1769701656315,0.03201309,2812.5,2811.7,12.81630583]
[1769701657050,0.03201309,2812.5,2811.6,13.70547847]
[1769701657216,0.03201309,2812.4,2811.6,13.70547847]
[1769701657416,0.001,2812.6,2811.6,13.70547847]
[1769701657417,0.001,2812.6,2811.6,15.43171444]
[1769701657624,0.0197223,2813.0,2811.7,12.81630583]
[1769701658029,0.03201309,2812.7,2811.7,13.70544041]
[1769701658318,0.03201309,2812.5,2811.7,13.70544041]
[1769701658632,0.05173539,2813.0,2811.7,13.70544041]
[1769701658843,0.03201309,2812.8,2811.9,12.81630583]
[1769701659039,0.03201309,2812.6,2811.6,0.88916447]
[1769701659248,0.03201309,2812.6,2811.5,13.70549708]
[1769701659451,0.03201309,2812.6,2811.5,12.81630583]
[1769701659656,0.03555745,2812.2,2810.9,12.81630583]
[1769701659967,0.03555745,2812.2,2811.0,14.09793641]
[1769701660163,0.03555745,2812.4,2811.0,14.09793641]
[1769701660164,0.03555745,2812.4,2811.1,13.7056374]
[1769701660458,0.03201309,2812.6,2811.1,13.7056374]
[1769701660634,0.92082614,2812.8,2811.1,13.7056374]
[1769701660969,0.03555745,2812.2,2810.9,0.88937787]
[1769701661138,0.03555745,2811.8,2810.9,0.88939247]
[1769701661326,0.03555745,2812.6,2811.0,0.88934727]
[1769701661522,0.745,2812.5,2811.0,13.7056531]
[1769701662044,0.88892049,2812.4,2811.0,13.70564469]
[1769701662234,0.51896025,2812.3,2811.0,12.81630583]
[1769701662436,0.51896025,2812.3,2810.4,0.88953132]
[1769701662626,0.51896025,2812.3,2810.4,16.37449339]
[1769701662627,4.27996025,2812.3,2810.4,16.37449339]
[1769701662820,4.27996025,2812.3,2810.4,12.81630583]
[1769701663033,0.51896025,2812.3,2810.9,0.88939378]
[1769701663233,0.51896025,2812.3,2810.9,0.88939341]
[1769701663433,0.51896025,2812.3,2810.9,14.18687575]
[1769701663729,3.55484375,2813.1,2810.9,14.18687575]
[1769701663730,0.90847228,2813.0,2811.2,12.81630583]
[1769701664155,0.90847228,2813.0,2811.3,13.70557414]
[1769701664732,0.745,2812.9,2811.3,13.70557414]
[1769701665335,0.90847228,2813.0,2811.3,12.81630583]
[1769701665952,0.0197223,2813.0,2811.3,12.81630583]
[1769701666264,0.90845481,2813.0,2811.5,12.81630583]
[1769701666462,0.0197223,2813.0,2811.5,12.81630583]
[1769701666635,0.90845396,2813.0,2811.5,12.81630583]
[1769701666835,0.90846663,2813.0,2811.5,12.81630583]
[1769701667036,0.0197223,2813.0,2811.5,12.81630583]
[1769701667236,3.92143445,2813.6,2811.9,12.81630583]
[1769701667237,0.3672385,2813.6,2811.9,12.81630583]
[1769701667437,0.3672385,2813.6,2812.1,12.81630583]
[1769701667656,1.25578774,2813.6,2812.1,12.81630583]
[1769701667833,0.3672385,2813.6,2812.1,12.81630583]
[1769701668029,0.3672385,2813.6,2812.3,12.81630583]
[1769701668229,0.18485655,2814.5,2812.5,12.81630583]
[1769701668230,0.8882888,2814.4,2812.5,12.81630583]
[1769701669333,0.88819412,2814.7,2812.8,12.81630583]
[1769701670190,0.88819412,2814.7,2812.9,13.70506831]
[1769701670395,0.51859428,2814.6,2813.1,12.81630583]
[1769701670577,0.88818052,2814.8,2813.1,12.81630583]
[1769701670578,0.745,2814.7,2813.1,12.81630583]
[1769701671090,0.88803637,2815.2,2813.1,12.81630583]
[1769701671264,1.63303637,2815.2,2813.1,12.81630583]
[1769701672290,9.73683693,2815.1,2813.1,13.70498566]
[1769701672860,0.1024,2815.0,2813.1,12.81630583]
[1769701673061,0.1024,2814.8,2813.1,13.70499699]
[1769701673306,0.1024,2814.8,2813.0,0.8887289]
[1769701673593,0.03555745,2814.7,2812.6,12.81630583]
[1769701673759,0.03555745,2814.7,2812.7,0.88882418]
[1769701673964,0.03555745,2814.7,2812.8,0.88877775]
[1769701674168,0.88825723,2814.5,2812.7,0.88882568]
[1769701674668,0.88825723,2814.5,2812.7,13.70513151]
[1769701674880,0.745,2814.4,2812.7,13.70513151]
[1769701675289,0.745,2814.3,2812.7,13.70513151]
[1769701675957,0.88825723,2814.5,2812.7,13.70513151]
[1769701676173,0.88832036,2814.3,2812.7,13.70513151]
[1769701676369,0.745,2814.2,2812.7,13.70513151]
[1769701676569,0.745,2814.1,2812.6,0.88883628]
[1769701676776,0.745,2814.1,2812.7,0.88881911]
[1769701677700,0.745,2814.1,2812.4,0.88891544]
[1769701677995,0.1024,2814.2,2812.5,0.88886869]
[1769701678196,0.88838349,2814.1,2812.6,13.93732475]
[1769701678397,1.63338349,2814.1,2812.5,0.44446371]
[1769701678601,1.63338349,2814.1,2812.3,0.8889521]
[1769701678775,0.745,2814.0,2812.3,14.82627685]
[1769701679302,0.745,2814.0,2812.9,0.002]
[1769701679466,0.88838349,2814.1,2812.9,0.002]
[1769701679867,0.745,2814.0,2812.9,0.002]
[1769701680099,0.88844663,2813.9,2812.9,0.002]
[1769701680299,0.51872332,2813.8,2812.6,0.002]
[1769701680499,0.745,2813.7,2812.6,0.002]
[1769701680723,0.51872332,2813.8,2812.6,0.002]
[1769701680997,1.26372332,2813.8,2812.6,0.002]
[1769701681201,0.215217,2813.7,2812.6,0.002]
[1769701681501,0.001,2814.5,2812.7,13.93732475]
[1769701681704,0.001,2814.5,2812.9,13.93732475]
[1769701682014,0.001,2814.5,2813.1,13.93732475]
[1769701682217,0.001,2814.5,2813.3,13.93732475]
[1769701683184,0.745,2814.4,2812.7,13.93732475]
[1769701683620,4.496,2814.4,2812.7,14.82614169]
[1769701683822,4.2007,2814.3,2812.7,13.93732475]
[1769701684022,0.4497,2814.3,2812.7,13.93732475]
[1769701684323,1.63335192,2814.2,2812.7,14.82614526]
[1769701684522,0.745,2814.1,2812.7,14.82614923]
[1769701685025,0.745,2814.1,2812.7,14.82614155]
[1769701685348,0.745,2814.1,2812.7,13.93732475]
[1769701685633,0.1024,2814.0,2812.6,0.002]
[1769701686004,0.88835192,2814.2,2812.8,13.93732475]
[1769701686205,0.001,2814.5,2813.0,13.93732475]
[1769701686528,0.8892574,2814.5,2813.0,13.93732475]
[1769701686900,0.001,2814.5,2813.2,13.93732475]
[1769701687391,0.88926608,2814.5,2813.2,13.93732475]
[1769701688423,0.88830138,2814.4,2813.2,14.82596583]
[1769701688591,0.51873561,2814.3,2813.2,14.82596583]
[1769701688999,0.88926322,2814.5,2813.2,14.82596583]
[1769701689431,0.1024,2815.4,2813.2,14.82596583]
[1769701689726,4.29690757,2815.4,2813.4,13.93732475]
[1769701689898,3.55190757,2815.4,2813.4,13.93732475]
[1769701690098,0.44398809,2815.3,2813.6,13.93732475]
[1769701690296,0.44398809,2815.3,2813.7,14.82583454]
[1769701690509,3.55141037,2815.8,2813.7,14.82583454]
[1769701690704,4.29641037,2815.8,2813.9,13.93732475]
[1769701691309,10.06502634,2816.2,2814.3,0.03555745]
[1769701691310,0.36374686,2816.2,2814.3,0.03555745]
[1769701691496,0.36374686,2816.2,2814.5,13.93732475]
[1769701691497,1.25149779,2816.2,2814.5,13.93732475]
[1769701691721,0.4802382,2816.1,2814.5,13.93732475]
[1769701692453,1.63278409,2816.0,2813.9,14.82576437]
[1769701692605,1.63278409,2816.0,2814.2,13.9728822]
[1769701692606,0.88778409,2816.0,2814.2,13.9728822]
[1769701692801,0.88778409,2816.0,2814.2,13.93732475]
[1769701693302,0.745,2815.9,2814.2,13.93732475]
[1769701693498,0.745,2815.9,2814.2,15.33105723]
[1769701693719,0.745,2815.9,2814.2,13.93732475]
[1769701694031,0.03555745,2815.7,2813.7,13.93732475]
[1769701694234,0.88797328,2815.4,2813.7,14.82583318]
[1769701694400,0.88797328,2815.4,2813.2,13.93732475]
[1769701694401,0.13795745,2815.3,2813.2,13.93732475]
[1769701694728,0.03555745,2815.1,2813.2,14.82597717]
[1769701694947,0.03555745,2815.1,2813.3,1.83807618]
[1769701695098,0.03555745,2815.1,2812.1,1.13448305]
[1769701695099,0.03555745,2813.7,2812.1,1.13448305]
[1769701695301,0.03555745,2813.7,2811.5,0.002]
[1769701695302,13.78058054,2815.0,2812.6,3.55533698]
[1769701695502,9.70127948,2815.3,2812.5,3.55546208]
[1769701695503,13.21021357,2814.9,2812.5,3.55546208]
[1769701695702,0.1024,2814.7,2812.6,1.24438551]
[1769701696003,0.1024,2814.7,2812.9,0.8887509]
[1769701696204,0.8882888,2814.4,2812.7,3.55525409]
[1769701696403,0.8882888,2814.4,2812.6,1.24439919]
[1769701696626,0.8882888,2814.4,2812.6,0.88885298]
[1769701697434,0.8882888,2814.4,2812.0,17.49346455]
[1769701697435,13.81725612,2814.3,2812.0,17.49346455]
[1769701697635,13.81725612,2814.3,2812.6,0.88885286]
[1769701697821,0.8882888,2814.4,2812.6,0.88885286]
[1769701697822,0.745,2814.2,2812.6,0.88885286]
[1769701698039,0.1024,2814.1,2812.1,0.88899726]
[1769701698324,0.88841506,2814.0,2812.3,0.8889521]
[1769701698838,13.07225612,2814.4,2812.3,0.8889521]
[1769701698839,0.8882888,2814.4,2812.6,13.9728822]
[1769701699043,0.88827762,2814.5,2812.7,13.9728822]
[1769701699256,3.55191762,2815.4,2813.2,13.93732475]
[1769701699407,0.35519176,2815.3,2813.4,13.93732475]
[1769701699609,0.1024,2815.2,2813.3,1.39728822]
[1769701699813,0.1024,2815.2,2812.9,13.93732475]
[1769701700355,0.88806791,2815.1,2813.0,14.82605564]
[1769701700639,3.90742862,2815.3,2813.5,0.03555745]
[1769701700640,0.35519176,2815.3,2813.5,0.03555745]
[1769701700808,0.03555745,2815.8,2813.9,13.93732475]
[1769701700809,0.88784714,2815.8,2813.9,13.93732475]
[1769701701544,0.1024,2815.7,2813.4,14.17089505]
[1769701701730,0.1024,2815.7,2813.4,13.93732475]
[1769701701917,0.03555745,2815.6,2813.4,13.93732475]
[1769701702110,1.44891927,2815.6,2813.5,1.39373248]
[1769701702311,0.88794175,2815.5,2813.6,0.88854137]
[1769701702512,0.88794175,2815.5,2813.6,14.82586612]
[1769701703312,0.88794175,2815.5,2813.6,0.88854137]
[1769701704116,0.745,2815.4,2813.6,0.88854137]
[1769701704341,0.745,2815.4,2813.5,18.88522271]
[1769701704342,0.001,2815.1,2813.8,0.88847821]
[1769701704538,0.88787868,2815.7,2813.8,14.86136041]
[1769701704737,0.88787868,2815.7,2814.0,13.9728822]
[1769701704938,0.88787868,2815.7,2814.1,13.9728822]
[1769701705359,0.88787868,2815.7,2813.8,0.88847821]
[1769701705661,0.88787868,2815.7,2813.9,0.59719261]
[1769701705662,0.44393181,2815.6,2813.9,0.59719261]
[1769701706424,0.88794175,2815.5,2814.0,0.88841506]
[1769701707073,0.88794175,2815.5,2813.9,1.48562199]
[1769701709082,0.88778409,2816.0,2814.2,0.03555745]
[1769701709379,0.88778409,2816.0,2813.9,1.48562199]
[1769701709548,0.49191587,2815.9,2814.0,0.50394085]
[1769701710274,0.49191587,2815.9,2814.0,14.41419548]
[1769701710590,0.49191587,2815.9,2814.2,13.91025463]
[1769701710740,0.88777487,2816.1,2814.3,14.79857499]
[1769701710937,0.88777487,2816.1,2814.4,0.03555745]
[1769701711351,0.88777487,2816.1,2814.3,14.79857499]
[1769701711667,14.07916752,2816.1,2814.2,0.88833526]
[1769701711899,14.07916752,2816.1,2814.0,0.50394085]
[1769701711900,15.36588511,2816.0,2814.0,0.50394085]
[1769701712042,15.36588511,2816.0,2813.8,0.88847534]
[1769701712043,13.19139265,2815.6,2813.8,0.88847534]
[1769701712370,13.19139265,2815.6,2813.8,0.8884607]
[1769701712597,13.73534056,2815.2,2813.0,3.5548988]
[1769701712755,2.26160197,2815.1,2813.1,0.35568988]
[1769701713091,2.26160197,2815.1,2812.9,12.70255567]
[1769701713261,0.744,2815.0,2812.9,12.66699822]
[1769701713447,0.744,2814.9,2813.0,0.03555745]
[1769701713756,0.744,2815.0,2813.0,12.70055567]
[1769701713971,2.26160197,2815.1,2813.3,12.66499822]
[1769701714141,0.58138736,2815.0,2813.4,1.27005557]
[1769701714345,0.88805599,2815.2,2813.4,13.97061124]
[1769701714665,3.55127141,2815.9,2814.0,0.92397251]
[1769701715069,0.88775256,2816.1,2814.0,13.55341328]
[1769701715576,0.88775256,2816.1,2814.4,12.66499822]
[1769701715792,0.88775256,2816.1,2814.1,0.26912775]
[1769701715793,0.36374686,2816.2,2814.5,13.96705549]
[1769701715969,0.36374686,2816.2,2814.8,12.66499822]
[1769701716164,0.001,2815.4,2814.5,1.26649982]
[1769701716352,0.001,2815.4,2814.2,12.66499822]
[1769701716551,1.25148344,2816.2,2814.5,12.70055567]
[1769701716552,0.36374686,2816.2,2814.5,12.70055567]
[1769701716785,0.88743743,2817.1,2815.0,0.03555745]
[1769701717168,0.88743743,2817.1,2814.9,12.66499822]